bitfinex-derivatives/quotes_BNBF0:USTF0_20250709
["timestamp","ask_amount","ask_price","bid_price","bid_amount"]
[1752094341718,3.34963873,668.55,667.83,1.54904097]
[1752094341920,3.34963873,668.55,667.84,1.54904097]
[1752094342117,3.34963873,668.56,667.73,1.291]
[1752094342320,3.34963873,668.55,667.74,1.54992737]
[1752094342515,3.34963873,668.55,667.75,1.54992737]
[1752094342720,3.34963873,668.55,667.76,1.54992737]
[1752094342919,3.34963873,668.55,667.77,1.54992737]
[1752094343220,3.34963873,668.55,667.78,1.54992737]
[1752094343420,3.34963873,668.55,667.73,1.291]
[1752094343421,3.34963873,668.54,667.79,1.54992737]
[1752094343620,3.34963873,668.54,667.8,1.54992737]
[1752094343820,3.34963873,668.54,667.81,1.54992737]
[1752094344020,3.34963873,668.54,667.73,1.291]
[1752094344021,3.34963873,668.53,667.82,1.54992737]
[1752094344221,3.34963873,668.55,667.83,1.54992737]
[1752094344421,3.34963873,668.54,667.84,1.54992737]
[1752094344620,3.34963873,668.54,667.85,1.54992737]
[1752094344819,3.34963873,668.54,667.73,1.291]
[1752094345017,3.34963873,668.54,667.74,1.55088094]
[1752094345223,3.34963873,668.45,667.75,1.55088094]
[1752094345420,3.34963873,668.46,667.76,1.55088094]
[1752094345623,3.34963873,668.46,667.77,1.55088094]
[1752094345824,3.34963873,668.46,667.78,1.55088094]
[1752094346021,3.34963873,668.45,667.79,1.55088094]
[1752094346321,3.34963873,668.44,667.8,1.55177297]
[1752094346520,3.34963873,668.45,667.73,1.291]
[1752094346726,3.34963873,668.47,667.74,1.5516169]
[1752094346926,3.34963873,668.47,667.75,1.5516169]
[1752094347121,3.34963873,668.47,667.76,1.5516169]
[1752094347426,3.34963873,668.47,667.77,1.5516169]
[1752094347627,3.34963873,668.47,667.78,1.5516169]
[1752094347827,3.34963873,668.47,667.79,1.5516169]
[1752094348026,3.34963873,668.47,667.8,1.5516169]
[1752094348223,3.34963873,668.47,667.73,1.291]
[1752094348427,3.34963873,668.47,667.74,1.55171349]
[1752094348626,3.34963873,668.47,667.75,1.55171349]
[1752094348922,3.34963873,668.46,667.76,1.55171349]
[1752094349128,3.34963873,668.48,667.77,1.55171349]
[1752094349324,3.34963873,668.49,667.78,1.55171349]
[1752094349522,3.34963873,668.5,667.73,1.291]
[1752094349723,5.58273122,669.16,667.74,1.55158977]
[1752094349724,3.34963873,668.48,667.74,1.55158977]
[1752094349923,3.34963873,668.48,667.75,1.55158977]
[1752094350125,3.34963873,668.48,667.76,1.55158977]
[1752094350326,3.34963873,668.48,667.77,1.55158977]
[1752094350629,3.34963873,668.48,667.73,1.291]
[1752094350923,3.34963873,668.48,667.74,1.55144791]
[1752094351127,3.34963873,668.48,667.75,1.55144791]
[1752094351325,3.34963873,668.48,667.76,1.55144791]
[1752094351527,3.34963873,668.48,667.77,1.55144791]
[1752094351728,3.34963873,668.48,667.73,1.291]
[1752094351924,3.34963873,668.47,667.74,1.55131627]
[1752094352128,3.34963873,668.47,667.75,1.55131627]
[1752094352325,3.34963873,668.47,667.76,1.55131627]
[1752094352530,3.34963873,668.47,667.77,1.55131627]
[1752094352729,3.34963873,668.47,667.73,1.291]
[1752094353025,3.34963873,668.47,667.74,1.55119407]
[1752094353229,3.34963873,668.47,667.75,1.55119407]
[1752094353525,3.34963873,668.47,667.76,1.55119407]
[1752094353730,3.34963873,668.47,667.73,1.291]
[1752094353928,3.34963873,668.47,667.74,1.55108045]
[1752094354231,3.34963873,668.47,667.75,1.55108045]
[1752094354433,3.34963873,668.46,667.76,1.55108045]
[1752094354633,3.34963873,668.46,667.73,1.291]
[1752094354933,3.34963873,668.46,667.74,1.55097483]
[1752094355134,3.34963873,668.46,667.75,1.55097483]
[1752094355429,3.34963873,668.46,667.76,1.55097483]
[1752094355628,3.34963873,668.46,667.73,1.291]
[1752094355830,3.34963873,668.46,667.74,1.55087667]
[1752094356129,3.34963873,668.46,667.75,1.55087667]
[1752094356328,3.34963873,668.47,667.76,1.55087667]
[1752094356633,3.34963873,668.44,667.73,1.291]
[1752094356831,3.34963873,668.47,667.74,1.55078305]
[1752094357030,3.34963873,668.47,667.75,1.55078305]
[1752094357330,3.34963873,668.47,667.76,1.55078305]
[1752094357534,3.34963873,668.47,667.73,1.291]
[1752094357834,3.34963873,668.51,667.74,1.55059908]
[1752094358130,3.34963873,668.51,667.75,1.55059908]
[1752094358429,3.34963873,668.51,667.76,1.55059908]
[1752094358733,3.34963873,668.51,667.77,1.55059908]
[1752094358930,11.1654624,669.96,667.73,1.291]
[1752094358931,3.34963873,668.49,667.78,1.55059908]
[1752094359233,3.34963873,668.49,667.79,1.55059908]
[1752094359430,3.34963873,668.49,667.8,1.55059908]
[1752094359633,3.34963873,668.52,667.81,1.55059908]
[1752094359931,3.34963873,668.52,667.82,1.55059908]
[1752094360134,3.34963873,668.52,667.73,1.291]
[1752094360334,3.34963873,668.52,667.74,1.55050197]
[1752094360635,3.34963873,668.51,667.75,1.55050197]
[1752094360835,3.34963873,668.51,667.76,1.55050197]
[1752094361035,3.34963873,668.51,667.77,1.55050197]
[1752094361233,3.34963873,668.51,667.78,1.55050197]
[1752094361433,3.34963873,668.51,667.79,1.55050197]
[1752094361735,3.34963873,668.52,667.8,1.55050197]
[1752094361935,3.34963873,668.52,667.81,1.55050197]
[1752094362137,3.34963873,668.52,667.82,1.55050197]
[1752094362339,3.34963873,668.52,667.73,1.291]
[1752094362537,3.34963873,668.52,667.74,1.55047317]
[1752094362735,3.34963873,668.52,667.75,1.55047317]
[1752094362934,3.34963873,668.52,667.76,1.55047317]
[1752094363135,3.34963873,668.52,667.77,1.55047317]
[1752094363335,3.34963873,668.53,667.78,1.55047317]
[1752094363535,3.34963873,668.53,667.79,1.55047317]
[1752094363838,3.34963873,668.53,667.8,1.55047317]
[1752094364034,3.34963873,668.52,667.81,1.55047317]
[1752094364236,3.34963873,668.53,667.82,1.55047317]
[1752094364440,3.34963873,668.53,667.73,1.291]
[1752094364636,3.34963873,668.53,667.74,1.55043121]
[1752094364841,3.34963873,668.53,667.75,1.55043121]
[1752094365036,3.34963873,668.53,667.76,1.55043121]
[1752094365240,3.34963873,668.53,667.77,1.55043121]
[1752094365437,3.34963873,668.53,667.78,1.55043121]
[1752094365741,3.34963873,668.53,667.79,1.55043121]
[1752094365941,3.34963873,668.53,667.8,1.55043121]
[1752094366139,3.34963873,668.53,667.81,1.55043121]
[1752094366341,3.34963873,668.53,667.82,1.55043121]
[1752094366642,3.34963873,668.53,667.59,0.26046832]
[1752094366837,3.34963873,668.51,667.6,1.55039501]
[1752094367038,3.34963873,668.51,667.61,1.55039501]
[1752094367243,3.34963873,668.57,667.62,1.55039501]
[1752094367440,3.34963873,668.57,667.63,1.55039501]
[1752094367643,3.34963873,668.57,667.64,1.55039501]
[1752094367945,3.34963873,668.57,667.65,1.55039501]
[1752094368144,3.34963873,668.57,667.66,1.55039501]
[1752094368441,3.34963873,668.57,667.67,1.55039501]
[1752094368644,3.34963873,668.57,667.68,1.55039501]
[1752094368941,3.34963873,668.57,667.69,1.55039501]
[1752094369141,3.34963873,668.58,667.7,1.55039501]
[1752094369339,5.58273122,669.25,667.66,1.469]
[1752094369340,3.34963873,668.57,667.71,1.55039501]
[1752094369542,3.34963873,668.57,667.72,1.55039501]
[1752094369743,3.34963873,668.57,667.73,1.55039501]
[1752094369941,3.34963873,668.57,667.74,1.55039501]
[1752094370140,3.34963873,668.57,667.75,1.55039501]
[1752094370444,3.34963873,668.57,667.76,1.55039501]
[1752094370644,3.34963873,668.57,667.77,1.55039501]
[1752094370942,3.34963873,668.59,667.78,1.55039501]
[1752094371139,3.34963873,668.59,667.79,1.55039501]
[1752094371341,3.34963873,668.59,667.8,1.55039501]
[1752094371644,3.34963873,668.58,667.81,1.55039501]
[1752094371943,3.34963873,668.58,667.82,1.55039501]
[1752094372139,3.34963873,668.58,667.83,1.55039501]
[1752094372344,3.34963873,668.58,667.66,1.469]
[1752094372541,3.34963873,668.58,667.67,1.55055994]
[1752094372739,3.34963873,668.58,667.68,1.55055994]
[1752094372944,3.34963873,668.59,667.69,1.55055994]
[1752094373144,3.34963873,668.58,667.7,1.55055994]
[1752094373345,3.34963873,668.58,667.71,1.55055994]
[1752094373644,3.34963873,668.57,667.72,1.55055994]
[1752094373841,3.34963873,668.57,667.73,1.55055994]
[1752094374045,3.34963873,668.57,667.66,1.469]
[1752094374046,3.34963873,668.57,667.74,1.55055994]
[1752094374241,3.34963873,668.58,667.75,1.55055994]
[1752094374446,3.34963873,668.58,667.76,1.55055994]
[1752094374746,3.34963873,668.57,667.77,1.55055994]
[1752094374944,3.34963873,668.57,667.78,1.55055994]
[1752094375141,3.34963873,668.57,667.79,1.55055994]
[1752094375342,3.34963873,668.57,667.8,1.55055994]
[1752094375546,3.34963873,668.57,667.81,1.55055994]
[1752094375842,3.34963873,668.57,667.82,1.55055994]
[1752094376145,3.34963873,668.57,667.83,1.55055994]
[1752094376447,5.58273122,669.24,667.84,1.55055994]
[1752094376448,3.34963873,668.56,667.84,1.55055994]
[1752094376641,3.34963873,668.56,667.66,1.469]
[1752094376845,3.34963873,668.56,667.67,1.55110397]
[1752094377046,3.34963873,668.51,667.68,1.55110397]
[1752094377342,3.34963873,668.51,667.69,1.55110397]
[1752094377541,3.34963873,668.51,667.7,1.55110397]
[1752094377745,3.34963873,668.51,667.71,1.55110397]
[1752094377944,3.34963873,668.51,667.72,1.55110397]
[1752094378244,3.34963873,668.51,667.73,1.55110397]
[1752094378449,3.34963873,668.5,667.74,1.55110397]
[1752094378649,3.34963873,668.5,667.75,1.55110397]
[1752094378848,3.34963873,668.51,667.76,1.55110397]
[1752094379050,3.34963873,668.5,667.77,1.55110397]
[1752094379248,3.34963873,668.52,667.78,1.55110397]
[1752094379550,3.34963873,668.49,667.79,1.55110397]
[1752094379752,3.34963873,668.48,667.8,1.55110397]
[1752094379946,3.34963873,668.48,667.81,1.55110397]
[1752094380150,3.34963873,668.48,667.82,1.55110397]
[1752094380350,3.34963873,668.48,667.66,1.469]
[1752094380551,3.34963873,668.48,667.67,1.5517121]
[1752094380747,3.34963873,668.46,667.68,1.5517121]
[1752094381050,3.34963873,668.46,667.69,1.5517121]
[1752094381250,3.34963873,668.46,667.7,1.5517121]
[1752094381550,3.34963873,668.46,667.71,1.5517121]
[1752094381847,3.34963873,668.46,667.72,1.5517121]
[1752094382050,3.34963873,668.46,667.73,1.5517121]
[1752094382348,3.34963873,668.45,667.74,1.5517121]
[1752094382546,3.34963873,668.45,667.75,1.5517121]
[1752094382745,3.34963873,668.45,667.76,1.5517121]
[1752094382947,3.34963873,668.45,667.77,1.5517121]
[1752094383249,3.34963873,668.45,667.78,1.5517121]
[1752094383445,3.34963873,668.45,667.79,1.5517121]
[1752094383647,3.34963873,668.45,667.8,1.5517121]
[1752094383850,3.34963873,668.45,667.81,1.5517121]
[1752094384148,3.34963873,668.43,667.82,1.5517121]
[1752094384352,3.34963873,668.43,667.83,1.5517121]
[1752094384549,3.34963873,668.43,667.66,1.469]
[1752094384850,3.34963873,668.43,667.67,1.55270745]
[1752094385055,3.34963873,668.43,667.68,1.55270745]
[1752094385353,3.34963873,668.43,667.69,1.55270745]
[1752094385653,3.34963873,668.42,667.7,1.55270745]
[1752094385954,3.34963873,668.46,667.71,1.55270745]
[1752094386152,3.34963873,668.46,667.72,1.55270745]
[1752094386353,3.34963873,668.46,667.73,1.55270745]
[1752094386549,3.34963873,668.46,667.74,1.55270745]
[1752094386750,3.34963873,668.46,667.75,1.55270745]
[1752094386947,3.34963873,668.46,667.76,1.55270745]
[1752094387150,3.34963873,668.46,667.77,1.55270745]
[1752094387354,3.34963873,668.46,667.78,1.55270745]
[1752094387555,3.34963873,668.46,667.79,1.55270745]
[1752094387756,3.34963873,668.46,667.8,1.55270745]
[1752094387955,3.34963873,668.46,667.81,1.55270745]
[1752094388152,3.34963873,668.46,667.82,1.55270745]
[1752094388352,3.34963873,668.46,667.83,1.55270745]
[1752094388556,3.34963873,668.46,667.84,1.55270745]
[1752094388754,3.34963873,668.45,667.85,1.55270745]
[1752094388956,3.34963873,668.46,667.86,1.55270745]
[1752094389157,3.34963873,668.47,667.87,1.55270745]
[1752094389357,3.34963873,668.46,667.88,1.55270745]
[1752094389554,3.34963873,668.44,667.66,1.469]
[1752094389753,3.34963873,668.44,667.67,1.55329508]
[1752094389958,3.34963873,668.44,667.68,1.55329508]
[1752094390153,3.34963873,668.44,667.69,1.55329508]
[1752094390358,3.34963873,668.44,667.7,1.55329508]
[1752094390554,3.34963873,668.44,667.71,1.55329508]
[1752094390856,3.34963873,668.44,667.72,1.55329508]
[1752094391056,3.34963873,668.44,667.73,1.55329508]
[1752094391256,3.34963873,668.44,667.74,1.55329508]
[1752094391554,3.34963873,668.44,667.75,1.55329508]
[1752094391856,3.34963873,668.44,667.76,1.55329508]
[1752094392053,3.34963873,668.44,667.77,1.55329508]
[1752094392353,3.34963873,668.44,667.78,1.55329508]
[1752094392559,3.34963873,668.43,667.79,1.55329508]
[1752094392758,3.34963873,668.43,667.8,1.55329508]
[1752094392957,3.34963873,668.43,667.81,1.55329508]
[1752094393154,3.34963873,668.43,667.82,1.55329508]
[1752094393458,3.34963873,668.43,667.83,1.55329508]
[1752094393655,3.34963873,668.43,667.84,1.55329508]
[1752094393855,3.34963873,668.43,667.85,1.55329508]
[1752094394057,3.34963873,668.43,667.66,1.469]
[1752094394058,3.34963873,668.41,667.86,1.55329508]
[1752094394260,3.34963873,668.41,667.66,1.469]
[1752094394261,3.34963873,668.43,667.87,1.55329508]
[1752094394458,3.34963873,668.43,667.88,1.55329508]
[1752094394659,3.34963873,668.43,667.89,1.55329508]
[1752094394859,3.34963873,668.43,667.66,1.469]
[1752094395059,3.34963873,668.43,667.67,1.55341371]
[1752094395263,3.34963873,668.43,667.68,1.55341371]
[1752094395461,5.58273122,669.0,667.66,1.469]
[1752094395462,3.34963873,668.45,667.69,1.55341371]
[1752094395658,3.34963873,668.44,667.7,1.55341371]
[1752094395861,3.34963873,668.49,667.71,1.55341371]
[1752094396064,3.34963873,668.49,667.72,1.55341371]
[1752094396264,3.34963873,668.49,667.73,1.55341371]
[1752094396559,3.34963873,668.5,667.74,1.55341371]
[1752094396759,3.34963873,668.5,667.75,1.55341371]
[1752094396959,3.34963873,668.5,667.76,1.55341371]
[1752094397164,3.34963873,668.51,667.77,1.55341371]
[1752094397464,3.34963873,668.52,667.78,1.55341371]
[1752094397759,3.34963873,668.52,667.79,1.55341371]
[1752094397959,3.34963873,668.52,667.8,1.55341371]
[1752094398159,3.34963873,668.52,667.81,1.55341371]
[1752094398359,3.34963873,668.52,667.82,1.55341371]
[1752094398659,3.34963873,668.52,667.83,1.55341371]
[1752094398859,3.34963873,668.51,667.84,1.55341371]
[1752094399062,3.34963873,668.49,667.85,1.55341371]
[1752094399263,3.34963873,668.49,667.66,1.469]
[1752094399264,3.34963873,668.5,667.86,1.55341371]
[1752094399463,3.34963873,668.51,667.87,1.55341371]
[1752094399760,3.34963873,668.54,667.88,1.55341371]
[1752094399964,3.34963873,668.54,667.89,1.55341371]
[1752094400265,3.34963873,668.53,667.9,1.55341371]
[1752094400565,3.34963873,668.55,667.91,1.55341371]
[1752094400762,3.34963873,668.55,667.92,1.55341371]
[1752094400964,3.34963873,668.55,667.93,1.55341371]
[1752094401163,3.34963873,668.52,667.94,1.55341371]
[1752094401364,3.34963873,668.52,667.95,1.55341371]
[1752094401565,3.34963873,668.5,667.96,1.55341371]
[1752094401764,3.34963873,668.5,667.73,1.68075617]
[1752094401965,3.34963873,668.5,667.74,1.55251277]
[1752094402165,3.34963873,668.48,667.75,1.55251277]
[1752094402365,3.34963873,668.52,667.76,1.55251277]
[1752094402566,3.34963873,668.52,667.77,1.55251277]
[1752094402769,3.34963873,668.52,667.78,1.55251277]
[1752094402970,3.34963873,668.52,667.79,1.55251277]
[1752094403169,3.34963873,668.52,667.8,1.55251277]
[1752094403366,3.34963873,668.53,667.81,1.55251277]
[1752094403572,3.34963873,668.53,667.82,1.55251277]
[1752094403765,3.34963873,668.53,667.83,1.55251277]
[1752094403969,3.34963873,668.53,667.84,1.55251277]
[1752094404165,3.34963873,668.51,667.85,1.55251277]
[1752094404367,3.34963873,668.53,667.86,1.55251277]
[1752094404570,3.34963873,668.53,667.66,3.14975617]
[1752094404571,3.34963873,668.53,667.87,1.55251277]
[1752094404774,3.34963873,668.54,667.88,1.55251277]
[1752094405071,3.34963873,668.54,667.66,1.469]
[1752094405072,3.34963873,668.54,667.89,1.55251277]
[1752094405270,3.34963873,668.54,667.9,1.55251277]
[1752094405470,3.34963873,668.51,667.91,1.55251277]
[1752094405669,3.34963873,668.51,667.66,1.469]
[1752094405869,3.34963873,668.51,667.67,1.55246901]
[1752094406171,3.34963873,668.5,667.68,1.55246901]
[1752094406372,3.34963873,668.5,667.69,1.55246901]
[1752094406571,3.34963873,668.5,667.7,1.55246901]
[1752094406770,3.34963873,668.5,667.66,1.469]
[1752094406771,3.34963873,668.5,667.71,1.55246901]
[1752094406967,3.34963873,668.5,667.72,1.55246901]
[1752094407272,3.34963873,668.5,667.73,1.55246901]
[1752094407472,3.34963873,668.5,667.74,1.55246901]
[1752094407768,3.34963873,668.5,667.75,1.55246901]
[1752094407967,3.34963873,668.5,667.76,1.55246901]
[1752094408271,3.34963873,668.5,667.77,1.55246901]
[1752094408469,3.34963873,668.5,667.78,1.55246901]
[1752094408669,3.34963873,668.5,667.79,1.55246901]
[1752094408870,3.34963873,668.5,667.8,1.55246901]
[1752094409069,3.34963873,668.5,667.81,1.55246901]
[1752094409271,3.34963873,668.52,667.82,1.55246901]
[1752094409468,3.34963873,668.52,667.83,1.55246901]
[1752094409672,3.34963873,668.51,667.84,1.55246901]
[1752094409867,3.34963873,668.51,667.85,1.55246901]
[1752094410072,3.34963873,668.51,667.86,1.55246901]
[1752094410267,3.34963873,668.51,667.87,1.55246901]
[1752094410468,3.34963873,668.5,667.88,1.55246901]
[1752094410673,3.34963873,668.5,667.89,1.55246901]
[1752094410875,3.34963873,668.5,667.9,1.55246901]
[1752094411069,3.34963873,668.5,667.87,1.328]
[1752094411268,3.34963873,668.5,667.88,1.55263757]
[1752094411469,3.34963873,668.5,667.89,1.55263757]
[1752094411672,3.34963873,668.5,667.9,1.55263757]
[1752094411873,3.34963873,668.5,667.87,1.328]
[1752094412072,3.34963873,668.5,667.88,1.55268414]
[1752094412369,3.34963873,668.49,667.89,1.55268414]
[1752094412573,3.34963873,668.49,667.9,1.55268414]
[1752094412767,3.34963873,668.49,667.91,1.55268414]
[1752094412969,3.34963873,668.49,667.87,1.328]
[1752094413168,3.34963873,668.48,667.88,1.55273462]
[1752094413369,3.34963873,668.48,667.89,1.55273462]
[1752094413574,3.34963873,668.48,667.9,1.55273462]
[1752094413872,3.34963873,668.48,667.91,1.55273462]
[1752094414069,3.34963873,668.47,667.87,1.328]
[1752094414373,3.34963873,668.48,667.88,1.55278921]
[1752094414569,3.34963873,668.46,667.89,1.55278921]
[1752094414774,3.34963873,668.46,667.9,1.55278921]
[1752094414973,3.34963873,668.44,667.87,1.328]
[1752094415170,3.34963873,668.44,667.88,1.55290475]
[1752094415472,3.34963873,668.45,667.87,1.328]
[1752094415673,3.34963873,668.44,667.87,1.328]
[1752094416377,3.34963873,668.43,667.87,1.328]
[1752094419085,3.34963873,668.42,667.87,1.328]
[1752094419284,3.34963873,668.56,667.87,1.328]
[1752094419482,3.34963873,668.55,667.87,1.328]
[1752094419782,3.34963873,668.47,667.87,1.328]
[1752094420482,3.34963873,668.48,667.87,1.328]
[1752094420882,3.34963873,668.47,667.87,1.328]
[1752094424589,3.34963873,668.48,667.87,1.328]
[1752094425589,3.34963873,668.42,667.87,1.328]
[1752094425885,3.34963873,668.41,667.87,1.328]
[1752094426590,3.34963873,668.36,667.87,1.328]
[1752094428784,3.34963873,668.37,667.87,1.328]
[1752094428985,3.34963873,668.36,667.87,1.328]
[1752094429286,3.34963873,668.38,667.87,1.328]
[1752094431194,3.34963873,668.39,667.87,1.328]
[1752094432291,3.34963873,668.43,667.87,1.328]
[1752094434096,3.34963873,668.45,667.87,1.328]
[1752094434297,3.34963873,668.46,667.87,1.328]
[1752094434597,3.34963873,668.47,667.87,1.328]
[1752094435295,3.34963873,668.45,667.87,1.328]
[1752094435498,3.34963873,668.49,667.87,1.328]
[1752094436098,3.34963873,668.47,667.87,1.328]
[1752094437194,3.34963873,668.48,667.87,1.328]
[1752094437395,3.34963873,668.47,667.87,1.328]
[1752094437898,3.34963873,668.48,667.87,1.328]
[1752094438395,3.34963873,668.47,667.87,1.328]
[1752094439699,3.34963873,668.44,667.87,1.328]
[1752094441300,3.34963873,668.59,667.87,1.328]
[1752094443902,3.34963873,668.57,667.87,1.328]
[1752094444102,3.34963873,668.54,667.87,1.328]
[1752094444301,11.1654624,670.29,667.87,1.328]
[1752094444302,3.34963873,668.55,667.87,1.328]
[1752094447401,3.34963873,668.56,667.87,1.328]
[1752094449099,5.58273122,669.32,667.87,1.328]
[1752094449100,3.34963873,668.55,667.87,1.328]
[1752094449303,3.34963873,668.56,667.87,1.328]
[1752094449705,3.34963873,668.58,667.87,1.328]
[1752094451105,3.34963873,668.49,667.87,1.328]
[1752094451502,3.34963873,668.5,667.87,1.328]
[1752094454102,3.34963873,668.48,667.87,1.328]
[1752094454304,3.34963873,668.49,667.87,1.328]
[1752094454609,3.34963873,668.44,667.87,1.328]
[1752094457108,3.34963873,668.42,667.87,1.328]
[1752094457604,3.34963873,668.41,667.87,1.328]
[1752094458404,3.34963873,668.42,667.87,1.328]
[1752094459009,3.34963873,668.41,667.87,1.328]
[1752094459306,3.34963873,668.42,667.87,1.328]
[1752094459915,3.34963873,668.43,667.87,1.328]
[1752094460108,3.34963873,668.5,667.87,1.328]
[1752094460711,3.34963873,668.51,667.87,1.328]
[1752094461412,3.34963873,668.5,667.87,1.328]
[1752094464411,3.34963873,668.51,667.87,1.328]
[1752094464615,3.34963873,668.51,667.59,0.26046832]
[1752094464815,3.34963873,668.51,667.6,1.55247095]
[1752094465018,3.34963873,668.51,667.61,1.55247095]
[1752094465312,3.34963873,668.51,667.62,1.55247095]
[1752094465515,3.34963873,668.51,667.63,1.55247095]
[1752094465711,3.34963873,668.51,667.64,1.55247095]
[1752094465916,3.34963873,668.51,667.65,1.55247095]
[1752094466216,3.34963873,668.51,667.66,1.55247095]
[1752094466412,3.34963873,668.51,667.67,1.55247095]
[1752094466616,5.58273122,669.22,667.68,1.55247095]
[1752094466617,3.34963873,668.48,667.68,1.55247095]
[1752094466817,3.34963873,668.47,667.69,1.55247095]
[1752094467115,3.34963873,668.47,667.7,1.55247095]
[1752094467412,3.34963873,668.47,667.71,1.55247095]
[1752094467613,3.34963873,668.46,667.72,1.55247095]
[1752094467812,3.34963873,668.46,667.73,1.55247095]
[1752094468013,3.34963873,668.4,667.74,1.55247095]
[1752094468216,3.34963873,668.4,667.75,1.55247095]
[1752094468415,3.34963873,668.4,667.76,1.55247095]
[1752094468616,3.34963873,668.4,667.77,1.55247095]
[1752094468916,3.34963873,668.4,667.78,1.55247095]
[1752094469117,3.34963873,668.4,667.79,1.55247095]
[1752094469312,3.34963873,668.41,667.71,1.36]
[1752094469613,3.34963873,668.38,667.72,1.55277711]
[1752094469816,3.34963873,668.38,667.73,1.55277711]
[1752094470012,3.34963873,668.38,667.74,1.55277711]
[1752094470212,3.34963873,668.38,667.75,1.55277711]
[1752094470416,3.34963873,668.38,667.76,1.55277711]
[1752094470715,3.34963873,668.38,667.77,1.55277711]
[1752094470913,3.34963873,668.38,667.78,1.55277711]
[1752094471116,3.34963873,668.38,667.79,1.55277711]
[1752094471314,3.34963873,668.38,667.8,1.55277711]
[1752094471517,3.34963873,668.51,667.71,1.36]
[1752094471829,3.34963873,668.51,667.72,1.55286771]
[1752094472012,3.34963873,668.51,667.73,1.55286771]
[1752094472215,3.34963873,668.51,667.74,1.55286771]
[1752094472415,3.34963873,668.51,667.75,1.55286771]
[1752094472613,3.34963873,668.51,667.76,1.55286771]
[1752094472813,3.34963873,668.51,667.77,1.55286771]
[1752094473013,3.34963873,668.51,667.78,1.55286771]
[1752094473213,3.34963873,668.51,667.79,1.55286771]
[1752094473413,3.34963873,668.51,667.8,1.55286771]
[1752094473614,3.34963873,668.45,667.71,1.36]
[1752094473913,3.34963873,668.45,667.72,1.55309225]
[1752094474118,3.34963873,668.45,667.73,1.55309225]
[1752094474318,3.34963873,668.46,667.74,1.55309225]
[1752094474515,3.34963873,668.46,667.75,1.55309225]
[1752094474718,3.34963873,668.46,667.71,1.36]
[1752094475014,3.34963873,668.46,667.72,1.55307066]
[1752094475213,3.34963873,668.46,667.73,1.55307066]
[1752094475418,3.34963873,668.46,667.74,1.55307066]
[1752094475614,3.34963873,668.45,667.71,1.36]
[1752094475913,3.34963873,668.45,667.72,1.5530301]
[1752094476118,3.34963873,668.45,667.73,1.5530301]
[1752094476418,3.34963873,668.44,667.74,1.5530301]
[1752094476618,3.34963873,668.44,667.71,1.36]
[1752094476818,3.34963873,668.44,667.72,1.55293514]
[1752094477018,3.34963873,668.44,667.73,1.55293514]
[1752094477313,3.34963873,668.44,667.71,1.36]
[1752094477515,3.34963873,668.45,667.72,1.55284827]
[1752094477714,3.34963873,668.45,667.73,1.55284827]
[1752094477916,3.34963873,668.45,667.71,1.36]
[1752094478116,3.34963873,668.45,667.72,1.55286299]
[1752094478320,3.34963873,668.3,667.71,1.36]
[1752094478520,3.34963873,668.26,667.71,1.36]
[1752094478719,3.34963873,668.22,667.71,1.36]
[1752094479021,3.34963873,668.2,667.71,1.36]
[1752094479215,3.34963873,668.22,667.71,1.36]
[1752094479420,3.34963873,668.23,667.71,1.36]
[1752094479719,3.34963873,668.24,667.71,1.36]
[1752094480015,3.34963873,668.2,667.71,1.36]
[1752094480519,3.34963873,668.21,667.71,1.36]
[1752094481015,3.34963873,668.19,667.71,1.36]
[1752094481219,3.34963873,668.18,667.71,1.36]
[1752094482320,3.34963873,668.19,667.71,1.36]
[1752094482520,3.34963873,668.16,667.71,1.36]
[1752094483420,3.34963873,668.17,667.71,1.36]
[1752094484120,3.34963873,668.16,667.71,1.36]
[1752094484317,3.34963873,668.19,667.71,1.36]
[1752094485318,3.34963873,668.2,667.71,1.36]
[1752094486421,3.34963873,668.22,667.71,1.36]
[1752094487523,3.34963873,668.23,667.71,1.36]
[1752094487821,3.34963873,668.42,667.71,1.36]
[1752094488421,3.34963873,668.43,667.71,1.36]
[1752094488821,3.34963873,668.47,667.71,1.36]
[1752094489219,3.34963873,668.5,667.71,1.36]
[1752094489424,3.34963873,668.55,667.71,1.36]
[1752094489622,3.34963873,668.52,667.71,1.36]
[1752094490524,3.34963873,668.53,667.71,1.36]
[1752094492624,3.34963873,668.54,667.71,1.36]
[1752094494323,3.34963873,668.55,667.71,1.36]
[1752094494922,3.34963873,668.54,667.71,1.36]
[1752094495326,3.34963873,668.56,667.71,1.36]
[1752094496228,3.34963873,668.54,667.71,1.36]
[1752094496525,3.34963873,668.32,667.71,1.36]
[1752094496823,3.34963873,668.31,667.71,1.36]
[1752094497128,3.34963873,668.33,667.71,1.36]
[1752094497326,3.34963873,668.64,667.71,1.36]
[1752094497524,3.34963873,668.45,667.71,1.36]